bitfinex/quotes_BTCUSD_20230108
["timestamp","ask_amount","ask_price","bid_price","bid_amount"]
[1673158914680,2.17554862,16961.0,16957.0,1.41199309]
[1673158914951,2.20508244,16961.0,16957.0,1.41199309]
[1673158915448,1.85157233,16961.0,16957.0,1.41199309]
[1673158915952,0.86394673,16961.0,16957.0,1.41199309]
[1673158916683,1.45355773,16961.0,16957.0,1.41199309]
[1673158916941,1.12285302,16961.0,16957.0,1.41199309]
[1673158917188,1.15237208,16961.0,16957.0,1.41199309]
[1673158917427,2.11046386,16961.0,16957.0,1.41199309]
[1673158917688,1.15236908,16961.0,16957.0,1.41199309]
[1673158918208,1.74199008,16961.0,16957.0,0.79870249]
[1673158918491,2.03679008,16961.0,16957.0,0.79870249]
[1673158919002,2.9653628,16961.0,16957.0,0.79870249]
[1673158919745,2.9653678,16961.0,16957.0,0.79870249]
[1673158920178,2.9653678,16961.0,16957.0,1.45346975]
[1673158920442,2.99469814,16961.0,16957.0,1.45346975]
[1673158920689,2.40508514,16961.0,16957.0,1.45346975]
[1673158920931,2.99469614,16961.0,16957.0,1.45346975]
[1673158921152,2.9653658,16961.0,16957.0,1.45346975]
[1673158922421,2.99552369,16961.0,16957.0,1.45346975]
[1673158924177,2.3757548,16961.0,16957.0,1.45346975]
[1673158925203,2.3757548,16961.0,16957.0,0.79870249]
[1673158926196,2.3757648,16961.0,16957.0,0.79870249]
[1673158926685,2.40530585,16961.0,16957.0,0.79870249]
[1673158927211,2.40529585,16961.0,16957.0,0.79870249]
[1673158927456,2.40529585,16961.0,16957.0,1.47775241]
[1673158927946,2.11049585,16961.0,16957.0,1.47775241]
[1673158928218,2.3757548,16961.0,16957.0,1.47775241]
[1673158929215,2.3757418,16961.0,16957.0,1.47775241]
[1673158929719,2.40540044,16961.0,16957.0,1.47775241]
[1673158929970,2.99501244,16961.0,16957.0,1.47775241]
[1673158930969,2.99502144,16961.0,16957.0,1.47775241]
[1673158931209,2.9653628,16961.0,16957.0,1.47775241]
[1673158932170,2.9653728,16961.0,16957.0,1.47775241]
[1673158932415,2.9653728,16961.0,16957.0,0.79870249]
[1673158932922,2.40533405,16961.0,16957.0,0.79870249]
[1673158934186,2.3757608,16961.0,16957.0,0.79870249]
[1673158934453,2.3757608,16961.0,16957.0,1.49087627]
[1673158936124,2.40502629,16961.0,16957.0,1.49087627]
[1673158936625,2.3757608,16961.0,16957.0,1.49087627]
[1673158936883,2.0809508,16961.0,16957.0,1.49087627]
[1673158937161,2.3757508,16961.0,16957.0,1.49087627]
[1673158937392,2.3757508,16961.0,16958.0,0.00075608]
[1673158938425,1.179272,16960.0,16958.0,0.00075608]
[1673158938888,1.179272,16960.0,16958.0,0.01275608]
[1673158939624,1.179272,16960.0,16958.0,0.00075608]
[1673158939873,1.191272,16960.0,16958.0,0.01275608]
[1673158940134,1.48267538,16960.0,16958.0,0.01275608]
[1673158940964,1.191272,16960.0,16958.0,0.01275608]
[1673158941429,1.191272,16960.0,16958.0,0.73047]
[1673158941946,1.191272,16960.0,16958.0,0.72971392]
[1673158944506,1.486082,16960.0,16958.0,0.72971392]
[1673158944765,1.191272,16960.0,16958.0,0.72971392]
[1673158946047,1.1903801,16960.0,16958.0,0.72971392]
[1673158946288,1.1903801,16960.0,16959.0,0.00075599]
[1673158946289,1.7800021,16960.0,16959.0,0.00075599]
[1673158946534,1.93974705,16960.0,16959.0,0.00075599]
[1673158947358,2.23974705,16960.0,16959.0,0.00075599]
[1673158948068,2.0680021,16960.0,16959.0,0.00075599]
[1673158948308,2.0800021,16960.0,16959.0,0.01275599]
[1673158952973,2.0979321,16960.0,16959.0,0.01275599]
[1673158954741,2.0800021,16960.0,16959.0,0.01275599]
[1673158959586,2.04432903,16961.0,16960.0,0.5]
[1673158959838,2.63391603,16961.0,16960.0,0.5]
[1673158960070,1.67582425,16961.0,16960.0,0.5]
[1673158960341,1.65981541,16961.0,16960.0,0.5]
[1673158960604,2.64785806,16961.0,16960.0,0.5]
[1673158960827,3.23744506,16961.0,16960.0,0.5]
[1673158961093,3.23844506,16961.0,16960.0,0.512]
[1673158961354,3.83325506,16961.0,16960.0,0.512]
[1673158961874,3.83225506,16961.0,16960.0,0.5]
[1673158962112,3.80330419,16961.0,16960.0,0.512]
[1673158962389,3.80330419,16961.0,16960.0,0.5]
[1673158962627,3.80330419,16961.0,16960.0,0.512]
[1673158962628,3.80430419,16961.0,16960.0,0.512]
[1673158962886,3.50949419,16961.0,16960.0,0.512]
[1673158963136,3.80430419,16961.0,16960.0,0.512]
[1673158963380,3.80230419,16961.0,16960.0,0.5]
[1673158963649,3.80330419,16961.0,16960.0,0.512]
[1673158963900,3.80230419,16961.0,16960.0,0.5]
[1673158964167,3.80330419,16961.0,16960.0,0.512]
[1673158964394,3.80230419,16961.0,16957.0,0.5490246]
[1673158964673,3.80330419,16961.0,16960.0,0.012]
[1673158964924,3.83129599,16961.0,16958.0,0.72804242]
[1673158965186,3.83229599,16961.0,16960.0,0.012]
[1673158965416,3.83129599,16961.0,16958.0,0.72804242]
[1673158966385,3.80230419,16961.0,16958.0,0.72804242]
[1673158966907,3.80330419,16961.0,16958.0,0.74004242]
[1673158967172,3.50749419,16961.0,16958.0,0.72804242]
[1673158967424,3.50849419,16961.0,16958.0,0.74004242]
[1673158967968,3.53715903,16961.0,16958.0,0.72804242]
[1673158968202,3.53815903,16961.0,16958.0,0.74004242]
[1673158968463,3.53815903,16961.0,16958.0,0.72804242]
[1673158968728,2.58006725,16961.0,16958.0,0.72804242]
[1673158969024,2.55040241,16961.0,16958.0,0.72804242]
[1673158969542,2.55040241,16961.0,16958.0,0.72728634]
[1673158969798,0.87148633,16959.0,16958.0,0.73928634]
[1673158970060,1.46114333,16959.0,16957.0,1.15922422]
[1673158970322,1.46114333,16959.0,16958.0,0.012]
[1673158970579,1.46114333,16959.0,16957.0,1.15922422]
[1673158971355,1.46214333,16959.0,16957.0,1.17022422]
[1673158971623,1.46114333,16959.0,16957.0,1.15922422]
[1673158971897,1.46214333,16959.0,16957.0,1.17122422]
[1673158972145,1.46214333,16959.0,16958.0,0.72490492]
[1673158972973,1.46114333,16959.0,16958.0,0.72490492]
[1673158973227,1.72518706,16959.0,16958.0,0.72490492]
[1673158973487,1.72618706,16959.0,16958.0,0.73690492]
[1673158973707,1.72618706,16959.0,16958.0,0.73766093]
[1673158973932,1.72618706,16959.0,16958.0,0.73781656]
[1673158974226,1.46214333,16959.0,16958.0,0.73766093]
[1673158981246,1.46114333,16959.0,16958.0,0.72566093]
[1673158981503,1.46114333,16959.0,16958.0,0.73766093]
[1673158981729,1.46214333,16959.0,16958.0,0.73766093]
[1673158985344,1.46214333,16959.0,16958.0,0.01275601]
[1673158986351,2.05180033,16959.0,16958.0,0.01275601]
[1673158987107,1.180314,16959.0,16958.0,0.01275601]
[1673158987602,1.180314,16959.0,16958.0,0.73766093]
[1673158988620,2.05171063,16959.0,16958.0,0.73766093]
[1673158989135,2.05171419,16959.0,16958.0,0.73766093]
[1673158992476,2.05171419,16959.0,16958.0,0.01275601]
[1673158994663,2.05171419,16959.0,16958.0,0.73766093]
[1673158999722,2.05171419,16959.0,16958.0,0.01275601]
[1673159001697,2.05171419,16959.0,16958.0,0.73766093]
[1673159001958,1.46205719,16959.0,16958.0,0.73766093]
[1673159006770,1.46205719,16959.0,16958.0,0.01275601]
[1673159008743,1.46205719,16959.0,16958.0,0.73766093]
[1673159008990,0.63999056,16961.0,16959.0,0.5]
[1673159009234,1.25960274,16961.0,16959.0,0.73767789]
[1673159009484,1.25960274,16961.0,16959.0,0.5]
[1673159010538,1.25960274,16961.0,16959.0,0.512]
[1673159011082,1.22959656,16961.0,16959.0,0.512]
[1673159013514,1.25963844,16961.0,16959.0,0.512]
[1673159013742,1.25963844,16961.0,16960.0,0.00075602]
[1673159014040,1.81918356,16961.0,16960.0,0.00075602]
[1673159014755,2.40877056,16961.0,16960.0,0.00075602]
[1673159015252,2.40877056,16961.0,16960.0,0.01275602]
[1673159017767,2.84077402,16961.0,16960.0,0.01275602]
[1673159018539,2.86956697,16961.0,16960.0,0.01275602]
[1673159019053,2.84077402,16961.0,16960.0,0.01275602]
[1673159021971,2.40877056,16961.0,16960.0,0.01275602]
[1673159024714,2.43803288,16961.0,16960.0,0.01275602]
[1673159026386,2.40877056,16961.0,16960.0,0.01275602]
[1673159028471,2.23517056,16961.0,16960.0,0.01275602]
[1673159028725,2.26528005,16961.0,16960.0,0.01275602]
[1673159030715,1.64556456,16961.0,16960.0,0.01275602]
[1673159032025,1.67482021,16961.0,16960.0,0.01275602]
[1673159033349,1.64556456,16961.0,16960.0,0.01275602]
[1673159034338,1.34556456,16961.0,16960.0,0.01275602]
[1673159035259,1.64556456,16961.0,16960.0,0.01268703]
[1673159041644,1.64556456,16961.0,16960.0,0.01298309]
[1673159041906,1.34556456,16961.0,16960.0,0.01268703]
[1673159043281,1.64556456,16961.0,16960.0,0.01268703]
[1673159043678,1.34556456,16961.0,16960.0,0.01268703]
[1673159052115,2.21667045,16961.0,16960.0,0.01268703]
[1673159053124,1.34556456,16961.0,16960.0,0.01268703]
[1673159053382,2.21665081,16961.0,16960.0,0.01268703]
[1673159055486,1.64556456,16961.0,16960.0,0.01268703]
[1673159055712,1.34556456,16961.0,16960.0,0.01268703]
[1673159056533,1.34556456,16961.0,16960.0,0.0126048]
[1673159058387,2.21666981,16961.0,16960.0,0.0126048]
[1673159069127,1.34556456,16961.0,16960.0,0.0126048]
[1673159069627,2.21682451,16961.0,16960.0,0.0126048]
[1673159069871,1.34556456,16961.0,16960.0,0.0126048]
[1673159070371,1.56092276,16961.0,16960.0,0.0126048]
[1673159070868,1.34556456,16961.0,16960.0,0.0126048]
[1673159073121,2.21689744,16961.0,16960.0,0.0126048]
[1673159073656,1.34556456,16961.0,16960.0,0.0126048]
[1673159076933,1.36401474,16961.0,16960.0,0.0126048]
[1673159078701,1.36401474,16961.0,16960.0,0.01248986]
[1673159083106,2.23550906,16961.0,16960.0,0.01248986]
[1673159090511,1.36401474,16961.0,16960.0,0.01248986]
[1673159098213,1.36401474,16961.0,16960.0,0.00048986]
[1673159098473,1.36401474,16961.0,16960.0,0.01248986]
[1673159100612,1.36401474,16961.0,16960.0,0.0124148]
[1673159102069,1.36401474,16961.0,16960.0,0.0059198]
[1673159107362,1.35901474,16961.0,16960.0,0.0059198]
[1673159122041,2.24860174,16961.0,16960.0,0.0059198]
[1673159122288,1.94860174,16961.0,16960.0,0.0059198]
[1673159122800,1.65901474,16961.0,16960.0,0.0059198]
[1673159123787,2.24860174,16961.0,16960.0,0.0059198]
[1673159125023,1.65901474,16961.0,16960.0,0.0059198]
[1673159126307,1.35901474,16961.0,16960.0,0.0059198]
[1673159127525,1.94860174,16961.0,16960.0,0.0059198]
[1673159128278,1.35901474,16961.0,16960.0,0.0059198]
[1673159129978,1.35901474,16961.0,16960.0,0.00584992]
[1673159133074,1.34056456,16961.0,16960.0,0.02886948]
[1673159136193,1.34056456,16961.0,16960.0,0.02901103]
[1673159136412,1.34056456,16961.0,16960.0,0.02886948]
[1673159137137,1.64056456,16961.0,16960.0,0.02886948]
[1673159137346,1.34056456,16961.0,16960.0,0.02886948]
[1673159138316,1.34056456,16961.0,16960.0,0.02901103]
[1673159138575,1.34056456,16961.0,16960.0,0.02886948]
[1673159140191,1.34056456,16961.0,16960.0,0.02901103]
[1673159140674,1.34056456,16961.0,16960.0,0.02886948]
[1673159141696,1.34056456,16961.0,16960.0,0.02901103]
[1673159141948,1.34056456,16961.0,16960.0,0.02886948]
[1673159147166,1.34056456,16961.0,16960.0,0.02901103]
[1673159147417,1.34056456,16961.0,16960.0,0.02886948]
[1673159148394,1.64056456,16961.0,16960.0,0.02886948]
[1673159148891,1.64056456,16961.0,16960.0,0.02901103]
[1673159149115,1.64056456,16961.0,16960.0,0.02886948]
[1673159149328,1.34056456,16961.0,16960.0,0.02886948]
[1673159149866,1.64056456,16961.0,16960.0,0.02886948]
[1673159150112,1.34056456,16961.0,16960.0,0.02886948]
[1673159151349,1.34056456,16961.0,16960.0,0.02901103]
[1673159151799,1.64056456,16961.0,16960.0,0.02886948]
[1673159152517,1.34045445,16961.0,16960.0,0.02901103]
[1673159152761,1.34045445,16961.0,16960.0,0.02886948]
[1673159153493,1.34045445,16961.0,16960.0,0.02901103]
[1673159153748,1.64045445,16961.0,16960.0,0.02901103]
[1673159154168,1.64045445,16961.0,16960.0,0.02886948]
[1673159155311,1.34045445,16961.0,16960.0,0.02886948]
[1673159155538,1.64045445,16961.0,16960.0,0.02886948]
[1673159157566,0.46128045,16961.0,16960.0,0.02886948]
[1673159157731,1.64045445,16961.0,16960.0,0.02886948]
[1673159157983,1.64045445,16961.0,16960.0,0.00584992]
[1673159159021,1.64045445,16961.0,16960.0,0.02887981]
[1673159164534,1.64045445,16961.0,16960.0,0.02902136]
[1673159164965,1.64045445,16961.0,16960.0,0.02887981]
[1673159166329,1.64045445,16961.0,16960.0,0.02902136]
[1673159166593,1.64045445,16961.0,16960.0,0.02887981]
[1673159175064,1.64045445,16961.0,16960.0,0.02880589]
[1673159182346,2.23004145,16961.0,16960.0,0.02880589]
[1673159190508,2.23004145,16961.0,16960.0,0.02894744]
[1673159191026,2.23004145,16961.0,16960.0,0.02880589]
[1673159191549,2.23004145,16961.0,16960.0,0.02894744]
[1673159191809,2.23004145,16961.0,16960.0,0.02880589]
[1673159192080,2.23004145,16961.0,16960.0,0.77509111]
[1673159192081,1.64045445,16961.0,16960.0,0.77509111]
[1673159192374,1.34045445,16961.0,16960.0,0.77509111]
[1673159192636,1.34045445,16961.0,16960.0,0.77792231]
[1673159194416,1.34045445,16961.0,16960.0,0.77509111]
[1673159195442,1.34045445,16961.0,16960.0,0.77523266]
[1673159196455,1.34045445,16961.0,16960.0,0.77509111]
[1673159198392,2.21180647,16961.0,16960.0,0.02880589]
[1673159198664,1.93004145,16961.0,16960.0,0.02880589]
[1673159199176,2.22994277,16961.0,16960.0,0.02868963]
[1673159199407,1.92994277,16961.0,16960.0,0.02868963]
[1673159199663,2.22994277,16961.0,16960.0,0.02868963]
[1673159200164,2.22994277,16961.0,16960.0,0.02883118]
[1673159200912,2.80126596,16961.0,16960.0,0.02883118]
[1673159201659,2.80126596,16961.0,16960.0,0.02868963]
[1673159201911,2.80126596,16961.0,16960.0,0.02883118]
[1673159202165,2.80126596,16961.0,16960.0,0.02868963]
[1673159202426,2.80126596,16961.0,16960.0,0.02669812]
[1673159204487,2.80126596,16961.0,16960.0,0.02683967]
[1673159204742,2.21167896,16961.0,16960.0,0.02669812]
[1673159205710,2.21167896,16961.0,16960.0,0.02683967]
[1673159206459,2.21167896,16961.0,16960.0,0.02669812]
[1673159209136,2.51167896,16961.0,16960.0,0.02669812]
[1673159209383,1.64035577,16961.0,16960.0,0.02669812]
[1673159211189,1.34035577,16961.0,16960.0,0.02669812]
[1673159211462,2.21158688,16961.0,16960.0,0.02669812]
[1673159211691,1.64035577,16961.0,16960.0,0.02669812]
[1673159212187,1.34035577,16961.0,16960.0,0.02669812]
[1673159212435,1.64035577,16961.0,16960.0,0.02669812]
[1673159212931,1.34035577,16961.0,16960.0,0.02683967]
[1673159213176,2.21158665,16961.0,16960.0,0.02669812]
[1673159213414,1.64035577,16961.0,16960.0,0.02669812]
[1673159213909,2.51159366,16961.0,16960.0,0.02669812]
[1673159214165,1.64035577,16961.0,16960.0,0.02669812]
[1673159214608,1.64035577,16961.0,16960.0,0.02683967]
[1673159214897,1.64035577,16961.0,16960.0,0.02669812]
[1673159214898,2.51158676,16961.0,16960.0,0.02669812]
[1673159215618,2.21158676,16961.0,16960.0,0.02683967]
[1673159215866,2.21158676,16961.0,16960.0,0.02669812]
[1673159216146,1.34035577,16961.0,16960.0,0.02669812]
[1673159216378,1.64035577,16961.0,16960.0,0.02669812]
[1673159217134,1.64035577,16961.0,16960.0,0.02683967]
[1673159217396,1.64035577,16961.0,16960.0,0.02669812]
[1673159217955,2.51159728,16961.0,16960.0,0.02669812]
[1673159218206,1.64035577,16961.0,16960.0,0.02669812]
[1673159218426,1.64035577,16961.0,16960.0,0.02683967]
[1673159219399,1.64035577,16961.0,16960.0,0.02669812]
[1673159220790,1.64035577,16961.0,16960.0,0.02683967]
[1673159221042,1.64035577,16961.0,16960.0,0.02669812]
[1673159221868,1.34035577,16961.0,16960.0,0.02683967]
[1673159222124,2.211645,16961.0,16960.0,0.02669812]
[1673159222375,2.21164403,16961.0,16960.0,0.02669812]
[1673159223943,1.64035577,16961.0,16960.0,0.02669812]
[1673159224206,2.52475277,16961.0,16960.0,0.02657928]
[1673159224457,2.22994277,16961.0,16960.0,0.02657928]
[1673159245880,2.22994277,16961.0,16960.0,0.02651212]
[1673159246854,2.22994277,16961.0,16960.0,0.02665367]
[1673159247107,2.22994277,16961.0,16960.0,0.02651212]
[1673159249623,2.22994277,16961.0,16960.0,0.02665367]
[1673159250082,2.22994277,16961.0,16960.0,0.02651212]
[1673159267953,2.22994277,16961.0,16960.0,0.02639868]
[1673159280519,2.22994277,16961.0,16960.0,0.02654023]
[1673159280781,2.22994277,16961.0,16960.0,0.02639868]
[1673159281495,2.22994277,16961.0,16960.0,0.02227668]
[1673159291571,2.52474277,16961.0,16960.0,0.02227668]
[1673159293533,2.8515852,16961.0,16960.0,0.02227668]
[1673159296258,2.5567852,16961.0,16960.0,0.02227668]
[1673159302442,2.5567852,16961.0,16960.0,0.02221022]
[1673159302672,2.59220189,16961.0,16960.0,0.02221022]
[1673159304047,2.59220189,16961.0,16958.0,0.76854348]
[1673159304311,0.87143552,16959.0,16958.0,0.76854348]
[1673159304579,2.05074952,16959.0,16958.0,0.76854348]
[1673159305335,2.05074952,16959.0,16958.0,0.78068503]
[1673159305591,2.05074952,16959.0,16958.0,0.76854348]
[1673159306116,2.06174952,16959.0,16958.0,0.78054348]
[1673159307910,2.06174952,16959.0,16958.0,0.78337501]
[1673159308138,2.06174952,16959.0,16958.0,0.78054348]
[1673159309117,2.06174952,16959.0,16958.0,0.78337501]
[1673159309366,1.190314,16959.0,16958.0,0.78337501]
[1673159309883,2.06174952,16959.0,16958.0,0.78054348]
[1673159312428,2.06174952,16959.0,16958.0,0.78337501]
[1673159312703,2.06174952,16959.0,16958.0,0.78054348]
[1673159313687,2.06174952,16959.0,16958.0,0.78337501]
[1673159314659,2.06174952,16959.0,16958.0,0.78054348]
[1673159316143,2.06174952,16959.0,16958.0,0.78337501]
[1673159316897,2.06174952,16959.0,16958.0,0.78054348]
[1673159317408,2.06174952,16959.0,16958.0,0.78337501]
[1673159318662,1.190314,16959.0,16958.0,0.78337501]
[1673159319916,1.190314,16959.0,16958.0,0.78054348]
[1673159322159,2.06174952,16959.0,16958.0,0.78054348]
[1673159322388,1.190314,16959.0,16958.0,0.78054348]
[1673159323931,1.190314,16959.0,16958.0,0.78047461]
[1673159328846,1.190314,16959.0,16958.0,0.78061616]
[1673159329112,1.190314,16959.0,16958.0,0.78047461]
[1673159331119,2.06174952,16959.0,16958.0,0.78047461]
[1673159333969,1.190314,16959.0,16958.0,0.78047461]
[1673159334242,1.190314,16959.0,16958.0,0.78061616]
[1673159334501,1.190314,16959.0,16958.0,0.78047461]
[1673159334746,2.06174952,16959.0,16958.0,0.78047461]
[1673159334995,1.190314,16959.0,16958.0,0.78047461]
[1673159339683,2.06174952,16959.0,16958.0,0.78047461]
[1673159340399,1.190314,16959.0,16958.0,0.78047461]
[1673159342609,2.06174952,16959.0,16958.0,0.78047461]
[1673159342857,2.06174952,16959.0,16958.0,0.78061616]
[1673159343107,2.06174952,16959.0,16958.0,0.78047461]
[1673159343438,1.190314,16959.0,16958.0,0.78047461]
[1673159343988,2.06174952,16959.0,16958.0,0.78047461]
[1673159344425,1.190314,16959.0,16958.0,0.78047461]
[1673159344652,2.06174952,16959.0,16958.0,0.78035804]
[1673159345660,1.190314,16959.0,16958.0,0.78035804]
[1673159346355,1.190314,16959.0,16958.0,0.78049959]
[1673159346610,1.190314,16959.0,16958.0,0.78035804]
[1673159350368,1.190314,16959.0,16958.0,0.78049959]
[1673159350623,1.190314,16959.0,16958.0,0.78035804]
[1673159357611,2.06174952,16959.0,16958.0,0.78035804]
[1673159357861,1.190314,16959.0,16958.0,0.78035804]
[1673159360357,1.190314,16959.0,16958.0,0.78049959]
[1673159360620,1.190314,16959.0,16958.0,0.78035804]
[1673159362245,1.190314,16959.0,16958.0,0.78049959]
[1673159362497,1.190314,16959.0,16958.0,0.78035804]
[1673159365163,1.190314,16959.0,16958.0,1.10793042]
[1673159365386,1.190314,16959.0,16958.0,0.78035804]
[1673159365837,1.190314,16959.0,16958.0,0.78024528]
[1673159369023,1.190314,16959.0,16958.0,0.03425826]
[1673159369283,2.06174952,16959.0,16958.0,0.03425826]
[1673159370271,1.779971,16959.0,16958.0,0.03425826]
[1673159371806,2.65124961,16959.0,16958.0,0.03425826]
[1673159377363,2.65124961,16959.0,16958.0,0.78054348]
[1673159382578,3.02023137,16959.0,16958.0,0.78054348]
[1673159384291,2.65124961,16959.0,16958.0,0.78054348]
[1673159386370,2.65124961,16959.0,16958.0,0.78044278]
[1673159387622,2.65118007,16959.0,16958.0,0.78044278]
[1673159398460,2.04947494,16959.0,16958.0,0.03415756]
[1673159398720,1.87687494,16959.0,16958.0,0.03415756]
[1673159398968,1.87687494,16959.0,16958.0,0.03050574]
[1673159399935,1.86587494,16959.0,16958.0,0.01850574]
[1673159400185,2.00287494,16959.0,16958.0,0.02250574]
[1673159401418,1.99639194,16959.0,16958.0,0.02250574]
[1673159402747,2.29639194,16959.0,16958.0,0.02767384]
[1673159403016,2.46725503,16959.0,16958.0,0.02767384]
[1673159404840,2.46725503,16959.0,16958.0,0.02470012]
[1673159408444,2.76210503,16959.0,16958.0,0.02470012]
[1673159410865,2.76210503,16959.0,16958.0,0.02216393]
[1673159411626,2.76210503,16959.0,16958.0,0.02754283]
[1673159417057,2.76210503,16959.0,16958.0,0.02472273]
[1673159418439,2.76209503,16959.0,16958.0,0.02472273]
[1673159419635,2.46725503,16959.0,16958.0,0.02472273]
[1673159419854,2.76209503,16959.0,16958.0,0.02472273]
[1673159422961,2.76209503,16959.0,16958.0,0.02219512]
[1673159423228,3.10399584,16959.0,16958.0,0.02219512]
[1673159426307,3.50618022,16959.0,16958.0,0.02219512]
[1673159428040,3.33298022,16959.0,16958.0,0.02219512]
[1673159429035,3.33298022,16959.0,16958.0,0.01996302]
[1673159432789,3.33300022,16959.0,16958.0,0.01996302]
[1673159433045,3.50720022,16959.0,16958.0,0.01996302]
[1673159433518,3.50720022,16959.0,16958.0,0.004]
[1673159435226,3.50720022,16959.0,16958.0,0.00359831]
[1673159436475,3.21234022,16959.0,16958.0,0.00359831]
[1673159436697,3.50720022,16959.0,16958.0,0.00359831]
[1673159438417,4.465292,16959.0,16958.0,0.00359831]
[1673159439860,4.170432,16959.0,16958.0,0.00359831]
[1673159440099,4.465292,16959.0,16958.0,0.00359831]
[1673159441137,4.465292,16959.0,16958.0,0.00323303]
[1673159447166,4.465292,16959.0,16958.0,0.00290356]
[1673159448164,4.170432,16959.0,16958.0,0.00290356]
[1673159448443,4.465292,16959.0,16958.0,0.00290356]
[1673159449642,3.50720022,16959.0,16958.0,0.00290356]
[1673159449861,4.465292,16959.0,16958.0,0.00290356]
[1673159450078,3.50720022,16959.0,16958.0,0.00290356]
[1673159450347,4.465292,16959.0,16958.0,0.00290356]
[1673159452973,4.465292,16959.0,16958.0,0.00260851]
[1673159453939,4.12339119,16959.0,16958.0,0.00260851]
[1673159456038,4.465292,16959.0,16958.0,0.00260851]
[1673159456298,4.42987531,16959.0,16958.0,0.00260851]
[1673159456554,4.465292,16959.0,16958.0,0.00260851]
[1673159458981,4.465292,16959.0,16958.0,0.00234107]
[1673159459717,4.465302,16959.0,16958.0,0.00234107]
[1673159459723,4.639302,16959.0,16958.0,0.00234107]
[1673159459988,4.63925599,16959.0,16958.0,0.00234107]
[1673159461051,4.23707161,16959.0,16958.0,0.00234107]
[1673159461560,4.06287161,16959.0,16958.0,0.00234107]
[1673159462288,4.06288161,16959.0,16958.0,0.00234107]
[1673159463325,3.10483584,16959.0,16958.0,0.00234107]
[1673159464006,4.06297148,16959.0,16958.0,0.00234107]
[1673159464251,3.63827884,16959.0,16958.0,0.00234107]
[1673159464501,4.59649048,16959.0,16958.0,0.00234107]
[1673159465013,4.59649048,16959.0,16958.0,0.00210133]
[1673159466806,3.63827884,16959.0,16958.0,0.00210133]
[1673159467576,4.59652195,16959.0,16958.0,0.00210133]
[1673159469070,4.25462114,16959.0,16958.0,0.00210133]
[1673159469848,3.72117814,16959.0,16958.0,0.00210133]
[1673159470111,4.06307895,16959.0,16958.0,0.00210133]
[1673159470366,4.06307895,16959.0,16955.0,0.74350455]
[1673159470625,0.87113714,16956.0,16955.0,0.74350455]
[1673159470875,2.64042014,16956.0,16955.0,0.74350455]
[1673159471129,2.97583683,16956.0,16955.0,0.74350455]
[1673159471630,2.97583683,16956.0,16955.0,0.78863086]
[1673159471887,2.97583683,16956.0,16955.0,0.78463086]
[1673159472139,3.11283683,16956.0,16955.0,0.78863086]
[1673159472657,3.11283683,16956.0,16955.0,0.78363086]
[1673159473665,2.81283683,16956.0,16955.0,0.78363086]
[1673159473888,3.11283683,16956.0,16955.0,0.78363086]
[1673159475352,2.81283683,16956.0,16955.0,0.78363086]
[1673159475609,2.81283683,16956.0,16955.0,0.04512631]
[1673159476122,3.11283683,16956.0,16955.0,0.04512631]
[1673159476376,3.11283683,16956.0,16955.0,0.04012631]
[1673159476850,2.81283683,16956.0,16955.0,0.04012631]
[1673159477619,2.81283683,16956.0,16955.0,0.75028522]
[1673159481539,2.81283683,16956.0,16955.0,0.79125824]
[1673159482046,3.11283683,16956.0,16955.0,0.79125824]
[1673159482317,2.81283683,16956.0,16955.0,0.79125824]
[1673159482563,2.81283683,16956.0,16955.0,0.79140681]
[1673159482817,1.94169969,16956.0,16955.0,0.79125824]
[1673159483600,1.94169969,16956.0,16955.0,0.75028522]
[1673159483817,1.94169969,16956.0,16955.0,1.19376161]
[1673159484096,1.94169969,16956.0,16955.0,2.34541817]
[1673159484097,0.137,16956.0,16955.0,2.34541817]
[1673159484338,0.137,16956.0,16955.0,2.71516228]
[1673159484587,0.137,16956.0,16955.0,2.75612823]
[1673159484885,0.73400059,16956.0,16955.0,2.31265184]
[1673159486278,0.137,16956.0,16955.0,2.31265184]
[1673159486799,0.667336,16956.0,16955.0,2.31265184]
[1673159487828,0.667336,16956.0,16955.0,2.90244784]
[1673159488371,0.667336,16956.0,16955.0,3.49632497]
[1673159488937,0.137,16956.0,16955.0,3.49632497]
[1673159489186,0.667336,16956.0,16955.0,3.49632497]
[1673159492313,0.667336,16956.0,16955.0,2.74989118]
[1673159494209,0.667336,16956.0,16955.0,4.2601724]
[1673159494210,0.57844039,16956.0,16955.0,4.2601724]
[1673159494471,0.57844039,16956.0,16955.0,3.69462495]
[1673159494727,0.57844039,16956.0,16955.0,4.8903901]
[1673159494728,0.75503979,16956.0,16955.0,4.8903901]
[1673159494984,0.9315432,16956.0,16955.0,4.8863901]
[1673159495236,0.61803979,16956.0,16955.0,4.8863901]
[1673159495510,0.5703676,16956.0,16955.0,4.8913901]
[1673159495818,0.4413676,16956.0,16955.0,4.8863901]
[1673159496034,0.74703979,16956.0,16955.0,4.3015941]
[1673159496348,0.74703979,16956.0,16955.0,3.55530888]
[1673159497409,0.57031695,16956.0,16955.0,3.55530888]
[1673159497661,0.57006716,16956.0,16955.0,3.55530888]
[1673159497919,0.57006716,16956.0,16955.0,4.60050888]
[1673159499411,0.57006716,16956.0,16955.0,5.3467941]
[1673159500929,0.30544454,16956.0,16955.0,5.3467941]
[1673159506649,0.57002582,16956.0,16955.0,5.3467941]
[1673159507119,0.9231932,16956.0,16955.0,5.3467941]
[1673159507336,0.57002582,16956.0,16955.0,5.3467941]
[1673159507866,0.74674866,16956.0,16955.0,5.3467941]
[1673159508358,0.92316372,16956.0,16955.0,5.3467941]
[1673159509417,0.56999634,16956.0,16955.0,5.3467941]
[1673159509684,0.56999634,16956.0,16955.0,4.1276941]
[1673159509947,0.74674866,16956.0,16955.0,4.1276941]
[1673159512521,0.57004491,16956.0,16955.0,4.1276941]
[1673159517037,0.57004491,16956.0,16955.0,3.5202721]
[1673159517561,0.57004491,16956.0,16955.0,4.1276941]
[1673159518764,0.74674866,16956.0,16955.0,4.1276941]
[1673159519018,0.74674866,16956.0,16955.0,3.5202721]
[1673159519732,0.74674866,16956.0,16955.0,4.1100681]
[1673159520493,0.57019356,16956.0,16955.0,4.1100681]
[1673159520730,0.74674866,16956.0,16955.0,4.7174901]
[1673159521246,0.74674866,16956.0,16955.0,4.1100681]
[1673159521995,0.74674866,16956.0,16955.0,4.10997378]
[1673159522250,0.74674866,16956.0,16955.0,4.71739578]
[1673159522699,0.92360777,16956.0,16955.0,4.12759978]
[1673159523229,0.92360777,16956.0,16955.0,4.10759978]
[1673159525433,0.92360777,16956.0,16955.0,4.69739578]
[1673159529651,0.92360777,16956.0,16955.0,4.52319578]
[1673159530436,0.92360777,16956.0,16955.0,3.91577378]
[1673159532968,0.57044039,16956.0,16955.0,3.91577378]
[1673159536093,0.57044039,16956.0,16955.0,3.93339978]
[1673159536631,0.57044039,16956.0,16955.0,3.32597778]
[1673159536879,0.129,16956.0,16955.0,3.32597778]
[1673159537423,0.57143385,16956.0,16955.0,3.32597778]
[1673159537672,0.129,16956.0,16955.0,3.32597778]
[1673159538465,0.57143452,16956.0,16955.0,3.32597778]